[Event "Chess Festival Groningen 2023 | A"]
[Site "Groningen, Netherlands"]
[Date "2023.12.30"]
[Round "9.8"]
[White "De Winter, Arthur"]
[Black "Gomes, Mary Ann"]
[Result "1-0"]
[TimeControl "90min/40moves + 30min + 30sec/move"]
[WhiteElo "2405"]
[BlackElo "2332"]

1. e4 {[%clk 01:30:57]} {[%emt 00:00:02]} c5 {[%clk 01:30:37]} {[%emt
00:00:23]} 2. Nf3 {[%clk 01:31:22]} {[%emt 00:00:05]} d6 {[%clk 01:30:57]}
{[%emt 00:00:10]} 3. d4 {[%clk 01:31:46]} {[%emt 00:00:06]} cxd4 {[%clk
01:31:23]} {[%emt 00:00:05]} 4. Nxd4 {[%clk 01:32:12]} {[%emt 00:00:04]} Nf6
{[%clk 01:31:47]} {[%emt 00:00:07]} 5. Nc3 {[%clk 01:32:37]} {[%emt 00:00:04]}
a6 {[%clk 01:32:11]} {[%emt 00:00:06]} 6. h4 {[%clk 01:27:58]} {[%emt
00:05:09]} e5 {[%clk 01:32:28]} {[%emt 00:00:13]} 7. Nb3 {[%clk 01:28:24]}
{[%emt 00:00:04]} Be7 {[%clk 01:32:42]} {[%emt 00:00:15]} 8. Be2 {[%clk
01:28:46]} {[%emt 00:00:07]} Be6 {[%clk 01:32:57]} {[%emt 00:00:16]} 9. f4
{[%clk 01:28:50]} {[%emt 00:00:26]} exf4 {[%clk 01:33:19]} {[%emt 00:00:08]} 10.
Bxf4 {[%clk 01:29:14]} {[%emt 00:00:06]} Nc6 {[%clk 01:33:43]} {[%emt
00:00:07]} 11. Qd2 {[%clk 01:28:54]} {[%emt 00:00:49]} Ne5 {[%clk 01:34:05]}
{[%emt 00:00:08]} 12. O-O-O {[%clk 01:28:43]} {[%emt 00:00:41]} O-O {[%clk
01:34:26]} {[%emt 00:00:09]} 13. Nd4 {[%clk 01:23:09]} {[%emt 00:06:04]} Rc8
{[%clk 01:34:46]} {[%emt 00:00:11]} 14. Kb1 {[%clk 01:22:59]} {[%emt 00:00:40]}
b5 {[%clk 01:25:38]} {[%emt 00:09:37]} 15. a3 {[%clk 01:22:47]} {[%emt
00:00:42]} Rc5 {[%clk 01:22:36]} {[%emt 00:03:32]} 16. h5 {[%clk 01:15:44]}
{[%emt 00:07:34]} Qa8 {[%clk 01:15:43]} {[%emt 00:07:23]} 17. h6 {[%clk
00:58:16]} {[%emt 00:17:58]} g6 {[%clk 01:13:02]} {[%emt 00:03:11]} 18. Bg5
{[%clk 00:57:12]} {[%emt 00:01:34]} Rfc8 {[%clk 00:48:10]} {[%emt 00:25:23]} 19.
Rhf1 {[%clk 00:41:52]} {[%emt 00:15:49]} Ned7 {[%clk 00:41:23]} {[%emt
00:07:18]} 20. Nxe6 {[%clk 00:38:23]} {[%emt 00:03:59]} fxe6 {[%clk 00:41:46]}
{[%emt 00:00:07]} 21. Bg4 {[%clk 00:38:16]} {[%emt 00:00:37]} Re5 {[%clk
00:40:48]} {[%emt 00:01:28]} 22. Bh3 {[%clk 00:37:36]} {[%emt 00:01:11]} a5
{[%clk 00:28:11]} {[%emt 00:13:07]} 23. Bf4 {[%clk 00:33:19]} {[%emt 00:04:46]}
Rcc5 {[%clk 00:28:17]} {[%emt 00:00:24]} 24. Bxe5 {[%clk 00:31:18]} {[%emt
00:02:32]} Rxe5 {[%clk 00:28:42]} {[%emt 00:00:05]} 25. Nxb5 {[%clk 00:25:51]}
{[%emt 00:05:57]} Rxb5 {[%clk 00:17:37]} {[%emt 00:11:35]} 26. Bxe6+ {[%clk
00:26:18]} {[%emt 00:00:04]} Kh8 {[%clk 00:18:01]} {[%emt 00:00:06]} 27. Bxd7
{[%clk 00:26:26]} {[%emt 00:00:21]} Nxd7 {[%clk 00:18:26]} {[%emt 00:00:05]} 28.
Rf7 {[%clk 00:25:52]} {[%emt 00:01:04]} Qe8 {[%clk 00:18:27]} {[%emt 00:00:29]}
29. Qc3+ {[%clk 00:26:03]} {[%emt 00:00:19]} Re5 {[%clk 00:18:24]} {[%emt
00:00:33]} 30. Rdf1 {[%clk 00:26:19]} {[%emt 00:00:14]} Nc5 {[%clk 00:17:07]}
{[%emt 00:01:47]} 31. Qxa5 {[%clk 00:20:59]} {[%emt 00:05:50]} Nxe4 {[%clk
00:17:14]} {[%emt 00:00:23]} 32. Qb4 {[%clk 00:20:17]} {[%emt 00:01:12]} Ng5
{[%clk 00:14:08]} {[%emt 00:03:35]} 33. R7f4 {[%clk 00:18:48]} {[%emt
00:01:59]} Ne6 {[%clk 00:13:20]} {[%emt 00:01:19]} 34. Re4 {[%clk 00:18:26]}
{[%emt 00:00:52]} Bg5 {[%clk 00:11:16]} {[%emt 00:02:32]} 35. Rfe1 {[%clk
00:16:30]} {[%emt 00:02:26]} Bf4 {[%clk 00:07:31]} {[%emt 00:04:14]} 36. a4
{[%clk 00:15:56]} {[%emt 00:01:06]} Nc7 {[%clk 00:03:20]} {[%emt 00:04:40]} 37.
Qxd6 {[%clk 00:16:10]} {[%emt 00:00:16]} 1-0

[Event "Chess Festival Groningen 2023 | A"]
[Site "Groningen, Netherlands"]
[Date "2023.12.30"]
[Round "9.9"]
[White "Aarav, Dengla"]
[Black "Palchuk, Andrii"]
[Result "1/2-1/2"]
[TimeControl "90min/40moves + 30min + 30sec/move"]
[WhiteFideId "45059756"]
[WhiteElo "2382"]
[BlackElo "2328"]

1. e4 {[%clk 01:30:57]} {[%emt 00:00:02]} c6 {[%clk 01:30:43]} {[%emt
00:00:16]} 2. d4 {[%clk 01:31:21]} {[%emt 00:00:07]} d5 {[%clk 01:31:08]}
{[%emt 00:00:05]} 3. exd5 {[%clk 01:31:34]} {[%emt 00:00:18]} cxd5 {[%clk
01:31:31]} {[%emt 00:00:07]} 4. Bd3 {[%clk 01:31:59]} {[%emt 00:00:05]} Nc6
{[%clk 01:30:49]} {[%emt 00:01:11]} 5. c3 {[%clk 01:32:18]} {[%emt 00:00:12]}
Nf6 {[%clk 01:30:38]} {[%emt 00:00:41]} 6. Bf4 {[%clk 01:32:33]} {[%emt
00:00:16]} Bg4 {[%clk 01:28:43]} {[%emt 00:02:24]} 7. Qb3 {[%clk 01:32:57]}
{[%emt 00:00:06]} Qc8 {[%clk 01:23:23]} {[%emt 00:05:50]} 8. Nd2 {[%clk
01:33:12]} {[%emt 00:00:16]} e6 {[%clk 01:23:42]} {[%emt 00:00:11]} 9. Ngf3
{[%clk 01:33:10]} {[%emt 00:00:31]} Be7 {[%clk 01:23:44]} {[%emt 00:00:27]} 10.
O-O {[%clk 01:32:33]} {[%emt 00:01:08]} O-O {[%clk 01:23:54]} {[%emt 00:00:19]}
11. Qc2 {[%clk 01:17:33]} {[%emt 00:15:31]} Bh5 {[%clk 01:21:00]} {[%emt
00:03:24]} 12. Ne5 {[%clk 01:10:34]} {[%emt 00:07:29]} 1/2-1/2

[Event "Chess Festival Groningen 2023 | A"]
[Site "Groningen, Netherlands"]
[Date "2023.12.30"]
[Round "9.10"]
[White "Slagboom, Leandro"]
[Black "Stremavicius, Titas"]
[Result "1/2-1/2"]
[TimeControl "90min/40moves + 30min + 30sec/move"]
[WhiteElo "2304"]
[BlackElo "2550"]

1. e4 {[%clk 01:30:57]} {[%emt 00:00:02]} c5 {[%clk 01:30:54]} {[%emt
00:00:07]} 2. Nf3 {[%clk 01:31:22]} {[%emt 00:00:05]} e6 {[%clk 01:31:18]}
{[%emt 00:00:06]} 3. d4 {[%clk 01:31:42]} {[%emt 00:00:10]} cxd4 {[%clk
01:31:42]} {[%emt 00:00:05]} 4. Nxd4 {[%clk 01:32:07]} {[%emt 00:00:06]} Nf6
{[%clk 01:32:00]} {[%emt 00:00:11]} 5. Nc3 {[%clk 01:32:29]} {[%emt 00:00:07]}
Nc6 {[%clk 01:31:05]} {[%emt 00:01:26]} 6. Qd3 {[%clk 01:32:41]} {[%emt
00:00:17]} Be7 {[%clk 01:24:33]} {[%emt 00:07:02]} 7. Nxc6 {[%clk 01:31:51]}
{[%emt 00:01:21]} bxc6 {[%clk 01:24:38]} {[%emt 00:00:24]} 8. e5 {[%clk
01:32:08]} {[%emt 00:00:13]} Nd5 {[%clk 01:25:02]} {[%emt 00:00:06]} 9. Qg3
{[%clk 01:32:11]} {[%emt 00:00:28]} g6 {[%clk 01:24:23]} {[%emt 00:01:09]} 10.
Bd2 {[%clk 01:29:50]} {[%emt 00:02:51]} Rb8 {[%clk 01:06:33]} {[%emt 00:18:21]}
1/2-1/2

[Event "Chess Festival Groningen 2023 | A"]
[Site "Groningen, Netherlands"]
[Date "2023.12.30"]
[Round "9.11"]
[White "Beerdsen, Thomas"]
[Black "Kanyamarala, Tarun"]
[Result "1-0"]
[TimeControl "90min/40moves + 30min + 30sec/move"]
[WhiteElo "2511"]
[BlackElo "2305"]

1. e4 {[%clk 01:30:57]} {[%emt 00:00:03]} c5 {[%clk 01:30:51]} {[%emt
00:00:09]} 2. c3 {[%clk 01:31:21]} {[%emt 00:00:06]} Nf6 {[%clk 01:31:14]}
{[%emt 00:00:08]} 3. e5 {[%clk 01:31:44]} {[%emt 00:00:06]} Nd5 {[%clk
01:31:39]} {[%emt 00:00:06]} 4. d4 {[%clk 01:32:10]} {[%emt 00:00:04]} cxd4
{[%clk 01:31:28]} {[%emt 00:00:41]} 5. Bc4 {[%clk 01:32:34]} {[%emt 00:00:05]}
Nb6 {[%clk 01:28:26]} {[%emt 00:03:33]} 6. Bb3 {[%clk 01:31:38]} {[%emt
00:01:25]} d5 {[%clk 01:27:12]} {[%emt 00:01:44]} 7. cxd4 {[%clk 01:30:58]}
{[%emt 00:01:10]} Nc6 {[%clk 01:24:03]} {[%emt 00:03:39]} 8. Bc2 {[%clk
01:31:14]} {[%emt 00:00:14]} Nb4 {[%clk 01:23:04]} {[%emt 00:01:30]} 9. Nc3
{[%clk 01:30:53]} {[%emt 00:00:51]} Bg4 {[%clk 01:16:33]} {[%emt 00:07:02]} 10.
Nge2 {[%clk 01:30:51]} {[%emt 00:00:31]} Nxc2+ {[%clk 01:09:43]} {[%emt
00:07:20]} 11. Qxc2 {[%clk 01:31:03]} {[%emt 00:00:17]} Qc8 {[%clk 01:09:02]}
{[%emt 00:01:11]} 12. Ng3 {[%clk 01:18:37]} {[%emt 00:12:56]} Qc4 {[%clk
01:08:31]} {[%emt 00:01:01]} 13. Be3 {[%clk 01:15:40]} {[%emt 00:03:27]} Rc8
{[%clk 01:08:41]} {[%emt 00:00:20]} 14. Rc1 {[%clk 01:10:30]} {[%emt 00:05:40]}
g6 {[%clk 01:05:50]} {[%emt 00:03:21]} 15. f4 {[%clk 00:58:31]} {[%emt
00:12:29]} e6 {[%clk 00:58:51]} {[%emt 00:07:29]} 16. h3 {[%clk 00:57:51]}
{[%emt 00:01:09]} Bf5 {[%clk 00:59:09]} {[%emt 00:00:12]} 17. Nxf5 {[%clk
00:57:50]} {[%emt 00:00:31]} gxf5 {[%clk 00:57:24]} {[%emt 00:02:15]} 18. g4
{[%clk 00:57:04]} {[%emt 00:01:17]} Bb4 {[%clk 00:47:03]} {[%emt 00:10:51]} 19.
gxf5 {[%clk 00:52:53]} {[%emt 00:04:41]} Qxa2 {[%clk 00:45:05]} {[%emt
00:02:29]} 20. fxe6 {[%clk 00:51:34]} {[%emt 00:01:48]} fxe6 {[%clk 00:45:05]}
{[%emt 00:00:30]} 21. Ke2 {[%clk 00:39:11]} {[%emt 00:12:53]} Bxc3 {[%clk
00:42:38]} {[%emt 00:02:57]} 22. bxc3 {[%clk 00:39:29]} {[%emt 00:00:12]} Qxc2+
{[%clk 00:42:24]} {[%emt 00:00:44]} 23. Rxc2 {[%clk 00:39:54]} {[%emt
00:00:05]} Nc4 {[%clk 00:35:14]} {[%emt 00:07:40]} 24. Kf3 {[%clk 00:22:53]}
{[%emt 00:17:30]} Rg8 {[%clk 00:31:56]} {[%emt 00:03:48]} 25. Bf2 {[%clk
00:20:39]} {[%emt 00:02:44]} Na3 {[%clk 00:26:28]} {[%emt 00:05:59]} 26. Rcc1
{[%clk 00:20:30]} {[%emt 00:00:38]} Rg7 {[%clk 00:25:06]} {[%emt 00:01:52]} 27.
Bh4 {[%clk 00:18:18]} {[%emt 00:02:42]} Rf7 {[%clk 00:17:39]} {[%emt 00:07:57]}
28. Bf6 {[%clk 00:17:24]} {[%emt 00:01:24]} Kd7 {[%clk 00:16:32]} {[%emt
00:01:37]} 29. Ke3 {[%clk 00:14:09]} {[%emt 00:03:46]} Nc4+ {[%clk 00:13:05]}
{[%emt 00:03:57]} 30. Kd3 {[%clk 00:13:44]} {[%emt 00:00:54]} Rg8 {[%clk
00:12:51]} {[%emt 00:00:45]} 31. Rhg1 {[%clk 00:13:54]} {[%emt 00:00:19]} Rff8
{[%clk 00:09:20]} {[%emt 00:04:01]} 32. Rg5 {[%clk 00:12:43]} {[%emt 00:01:41]}
Rxg5 {[%clk 00:02:24]} {[%emt 00:07:28]} 33. fxg5 {[%clk 00:12:58]} {[%emt
00:00:14]} Nb2+ {[%emt 00:00:31]} 34. Ke2 Rc8 35. Rb1 Na4 36. Rxb7+ Rc7 37.
Rxc7+ Kxc7 38. h4 Nxc3+ 39. Kd3 Ne4 40. h5 Nxg5 41. Bxg5 Kc6 42. Kc3 Kb5 43.
Be7 Ka4 {[%clk 00:02:23]} 44. h6 Kb5 {[%clk 00:02:23]} 45. Bc5 a6 {[%clk
00:02:23]} 46. Kd3 Ka4 {[%clk 00:02:23]} 47. Ke3 Kb3 {[%clk 00:02:23]} 48. Kf4
a5 {[%clk 00:02:23]} 49. Kg5 a4 {[%clk 00:02:23]} 50. Kf6 a3 {[%clk 00:02:23]}
51. Bxa3 1-0

[Event "Chess Festival Groningen 2023 | A"]
[Site "Groningen, Netherlands"]
[Date "2023.12.30"]
[Round "9.12"]
[White "Kovchan, Alexander"]
[Black "De Jong, Migchiel"]
[Result "1-0"]
[TimeControl "90min/40moves + 30min + 30sec/move"]
[WhiteElo "2491"]
[BlackElo "2301"]

1. d4 {[%clk 01:30:53]} {[%emt 00:00:05]} e6 {[%clk 01:30:04]} {[%emt
00:00:57]} 2. c4 {[%clk 01:30:40]} {[%emt 00:00:43]} Bb4+ {[%clk 01:30:05]}
{[%emt 00:00:28]} 3. Bd2 {[%clk 01:30:32]} {[%emt 00:00:38]} a5 {[%clk
01:30:08]} {[%emt 00:00:27]} 4. a3 {[%clk 01:29:31]} {[%emt 00:01:32]} Bxd2+
{[%clk 01:28:59]} {[%emt 00:01:40]} 5. Qxd2 {[%clk 01:29:49]} {[%emt 00:00:11]}
Nf6 {[%clk 01:28:10]} {[%emt 00:01:19]} 6. Nc3 {[%clk 01:29:56]} {[%emt
00:00:23]} d6 {[%clk 01:24:49]} {[%emt 00:03:51]} 7. Nf3 {[%clk 01:28:28]}
{[%emt 00:01:57]} Nbd7 {[%clk 01:24:29]} {[%emt 00:00:49]} 8. O-O-O {[%clk
01:22:39]} {[%emt 00:06:20]} Qe7 {[%clk 01:07:56]} {[%emt 00:17:02]} 9. e4
{[%clk 01:20:07]} {[%emt 00:03:03]} e5 {[%clk 01:07:42]} {[%emt 00:00:43]} 10.
Bd3 {[%clk 01:19:55]} {[%emt 00:00:42]} O-O {[%clk 01:07:11]} {[%emt 00:01:00]}
11. Bc2 {[%clk 01:15:16]} {[%emt 00:05:09]} c6 {[%clk 01:05:01]} {[%emt
00:02:39]} 12. g4 {[%clk 01:04:33]} {[%emt 00:11:14]} Re8 {[%clk 00:59:13]}
{[%emt 00:06:19]} 13. h3 {[%clk 00:58:56]} {[%emt 00:06:07]} Nb6 {[%clk
00:50:34]} {[%emt 00:09:08]} 14. c5 {[%clk 00:49:12]} {[%emt 00:10:14]} dxc5
{[%clk 00:38:37]} {[%emt 00:12:27]} 15. dxe5 {[%clk 00:49:13]} {[%emt
00:00:29]} Nfd7 {[%clk 00:37:31]} {[%emt 00:01:35]} 16. e6 {[%clk 00:49:08]}
{[%emt 00:00:36]} Qxe6 {[%clk 00:32:35]} {[%emt 00:05:26]} 17. e5 {[%clk
00:48:03]} {[%emt 00:01:35]} Nf8 {[%clk 00:27:41]} {[%emt 00:05:23]} 18. Rhe1
{[%clk 00:42:43]} {[%emt 00:05:50]} Qe7 {[%clk 00:25:46]} {[%emt 00:02:24]} 19.
Ne4 {[%clk 00:41:53]} {[%emt 00:01:20]} Be6 {[%clk 00:24:05]} {[%emt 00:02:12]}
20. Qc3 {[%clk 00:35:04]} {[%emt 00:07:19]} c4 {[%clk 00:17:30]} {[%emt
00:07:06]} 21. Nd6 {[%clk 00:22:58]} {[%emt 00:12:36]} Nd5 {[%clk 00:14:49]}
{[%emt 00:03:10]} 22. Qd4 {[%clk 00:22:36]} {[%emt 00:00:51]} b5 {[%clk
00:14:36]} {[%emt 00:00:44]} 23. Nd2 {[%clk 00:21:47]} {[%emt 00:01:19]} Red8
{[%clk 00:12:11]} {[%emt 00:02:56]} 24. N2e4 {[%clk 00:21:08]} {[%emt
00:01:09]} b4 {[%clk 00:11:22]} {[%emt 00:01:19]} 25. a4 {[%clk 00:21:05]}
{[%emt 00:00:32]} c3 {[%clk 00:10:39]} {[%emt 00:01:13]} 26. bxc3 {[%clk
00:19:59]} {[%emt 00:01:37]} Nxc3 {[%clk 00:09:41]} {[%emt 00:01:27]} 27. Nxc3
{[%clk 00:20:13]} {[%emt 00:00:15]} bxc3 {[%clk 00:09:47]} {[%emt 00:00:24]} 28.
f4 {[%clk 00:18:04]} {[%emt 00:02:39]} Rab8 {[%clk 00:09:01]} {[%emt 00:01:16]}
29. Qxc3 {[%clk 00:18:25]} {[%emt 00:00:09]} Rb4 {[%clk 00:08:34]} {[%emt
00:00:57]} 30. f5 {[%clk 00:18:45]} {[%emt 00:00:10]} Bd5 {[%clk 00:08:16]}
{[%emt 00:00:48]} 31. f6 {[%clk 00:18:24]} {[%emt 00:00:50]} Qa7 {[%clk
00:08:23]} {[%emt 00:00:23]} 32. Nf5 {[%clk 00:16:37]} {[%emt 00:02:17]} Ne6
{[%clk 00:06:24]} {[%emt 00:02:29]} 33. Nxg7 {[%clk 00:11:43]} {[%emt
00:05:24]} Nxg7 {[%clk 00:05:14]} {[%emt 00:01:40]} 34. Qd3 {[%clk 00:11:53]}
{[%emt 00:00:20]} 1-0

[Event "Chess Festival Groningen 2023 | A"]
[Site "Groningen, Netherlands"]
[Date "2023.12.30"]
[Round "9.13"]
[White "Sanket, Chakravarty"]
[Black "Lambrechts, Koen"]
[Result "1-0"]
[TimeControl "90min/40moves + 30min + 30sec/move"]
[WhiteFideId "25032038"]
[WhiteElo "2361"]
[BlackElo "2290"]

1. c4 {[%clk 01:23:42]} {[%emt 00:04:24]} b6 {[%clk 01:30:49]} {[%emt
00:00:11]} 2. d4 {[%clk 01:23:48]} {[%emt 00:00:23]} e6 {[%clk 01:31:12]}
{[%emt 00:00:07]} 3. a3 {[%clk 01:24:05]} {[%emt 00:00:14]} Bb7 {[%clk
01:31:36]} {[%emt 00:00:06]} 4. Nc3 {[%clk 01:24:13]} {[%emt 00:00:22]} f5
{[%clk 01:31:59]} {[%emt 00:00:07]} 5. d5 {[%clk 01:23:26]} {[%emt 00:01:17]}
Be7 {[%clk 01:30:00]} {[%emt 00:02:29]} 6. Nf3 {[%clk 01:20:48]} {[%emt
00:03:07]} Na6 {[%clk 01:19:07]} {[%emt 00:11:25]} 7. b4 {[%clk 01:12:50]}
{[%emt 00:08:27]} Nf6 {[%clk 01:16:01]} {[%emt 00:03:36]} 8. g3 {[%clk
01:05:42]} {[%emt 00:07:38]} Ne4 {[%clk 01:12:05]} {[%emt 00:04:26]} 9. Bb2
{[%clk 00:59:42]} {[%emt 00:06:29]} Bf6 {[%clk 01:10:37]} {[%emt 00:01:58]} 10.
Rc1 {[%clk 00:58:59]} {[%emt 00:01:12]} exd5 {[%clk 01:09:01]} {[%emt
00:02:07]} 11. cxd5 {[%clk 00:58:19]} {[%emt 00:01:09]} c5 {[%clk 01:09:18]}
{[%emt 00:00:14]} 12. dxc6 {[%clk 00:53:46]} {[%emt 00:05:03]} dxc6 {[%clk
01:07:28]} {[%emt 00:02:20]} 13. Qb3 {[%clk 00:53:28]} {[%emt 00:00:47]} Qe7
{[%clk 01:03:48]} {[%emt 00:04:10]} 14. Bh3 {[%clk 00:47:36]} {[%emt 00:06:22]}
g6 {[%clk 00:50:25]} {[%emt 00:13:53]} 15. Nxe4 {[%clk 00:43:36]} {[%emt
00:04:29]} fxe4 {[%clk 00:49:39]} {[%emt 00:01:17]} 16. Nd4 {[%clk 00:43:31]}
{[%emt 00:00:34]} Qe5 {[%clk 00:35:48]} {[%emt 00:14:21]} 17. O-O {[%clk
00:40:25]} {[%emt 00:03:37]} Qd5 {[%clk 00:29:53]} {[%emt 00:06:26]} 18. Qxd5
{[%clk 00:31:05]} {[%emt 00:09:48]} cxd5 {[%clk 00:29:01]} {[%emt 00:01:23]} 19.
Rc2 {[%clk 00:31:10]} {[%emt 00:00:24]} Ke7 {[%clk 00:23:04]} {[%emt 00:06:27]}
20. Rfc1 {[%clk 00:30:18]} {[%emt 00:01:21]} Rab8 {[%clk 00:20:59]} {[%emt
00:02:36]} 21. Rc7+ {[%clk 00:18:04]} {[%emt 00:12:45]} Nxc7 {[%clk 00:20:03]}
{[%emt 00:01:26]} 22. Rxc7+ {[%clk 00:18:24]} {[%emt 00:00:09]} Ke8 {[%clk
00:20:23]} {[%emt 00:00:11]} 23. Nc6 {[%clk 00:18:33]} {[%emt 00:00:21]} Bd8
{[%clk 00:15:56]} {[%emt 00:04:57]} 24. Nxd8 {[%clk 00:18:10]} {[%emt
00:00:53]} Kxd8 {[%clk 00:16:10]} {[%emt 00:00:16]} 25. Rd7+ {[%clk 00:18:32]}
{[%emt 00:00:08]} Ke8 {[%clk 00:16:28]} {[%emt 00:00:12]} 26. Bxh8 {[%clk
00:18:53]} {[%emt 00:00:08]} Bc8 {[%clk 00:16:37]} {[%emt 00:00:21]} 27. Be5
{[%clk 00:19:12]} {[%emt 00:00:10]} 1-0

[Event "Chess Festival Groningen 2023 | A"]
[Site "Groningen, Netherlands"]
[Date "2023.12.30"]
[Round "9.14"]
[White "Elgersma, Onno"]
[Black "Van Foreest, Machteld"]
[Result "0-1"]
[TimeControl "90min/40moves + 30min + 30sec/move"]
[WhiteElo "2310"]
[BlackElo "2344"]

1. e4 {[%clk 01:30:57]} {[%emt 00:00:03]} c5 {[%clk 01:30:48]} {[%emt
00:00:13]} 2. Nf3 {[%clk 01:31:07]} {[%emt 00:00:19]} e6 {[%clk 01:31:14]}
{[%emt 00:00:04]} 3. g3 {[%clk 01:28:29]} {[%emt 00:03:08]} Nc6 {[%clk
01:31:40]} {[%emt 00:00:05]} 4. Bg2 {[%clk 01:28:54]} {[%emt 00:00:04]} Nf6
{[%clk 01:32:06]} {[%emt 00:00:03]} 5. Qe2 {[%clk 01:29:20]} {[%emt 00:00:05]}
e5 {[%clk 01:32:23]} {[%emt 00:00:13]} 6. O-O {[%clk 01:29:37]} {[%emt
00:00:12]} d6 {[%clk 01:32:47]} {[%emt 00:00:07]} 7. c3 {[%clk 01:29:31]}
{[%emt 00:00:36]} Bg4 {[%clk 01:19:14]} {[%emt 00:14:02]} 8. h3 {[%clk
01:26:39]} {[%emt 00:03:23]} Bh5 {[%clk 01:17:38]} {[%emt 00:02:06]} 9. Rd1
{[%clk 01:16:06]} {[%emt 00:11:02]} Rc8 {[%clk 01:15:43]} {[%emt 00:02:26]} 10.
Na3 {[%clk 01:07:27]} {[%emt 00:09:08]} Be7 {[%clk 01:15:45]} {[%emt 00:00:28]}
11. g4 {[%clk 00:56:44]} {[%emt 00:11:13]} Bg6 {[%clk 01:14:06]} {[%emt
00:02:10]} 12. d4 {[%clk 00:53:03]} {[%emt 00:04:10]} exd4 {[%clk 00:57:54]}
{[%emt 00:16:41]} 13. cxd4 {[%clk 00:53:21]} {[%emt 00:00:12]} Nxe4 {[%clk
00:57:37]} {[%emt 00:00:47]} 14. d5 {[%clk 00:52:02]} {[%emt 00:01:49]} Nb4
{[%clk 00:54:24]} {[%emt 00:03:44]} 15. Nh2 {[%clk 00:46:49]} {[%emt 00:05:43]}
Nf6 {[%clk 00:52:37]} {[%emt 00:02:18]} 16. f4 {[%clk 00:46:57]} {[%emt
00:00:21]} h6 {[%clk 00:50:58]} {[%emt 00:02:09]} 17. f5 {[%clk 00:45:50]}
{[%emt 00:01:38]} Bh7 {[%clk 00:50:33]} {[%emt 00:00:55]} 18. Nb5 {[%clk
00:37:33]} {[%emt 00:08:47]} a6 {[%clk 00:47:03]} {[%emt 00:04:00]} 19. Nc3
{[%clk 00:36:33]} {[%emt 00:01:28]} c4 {[%clk 00:47:26]} {[%emt 00:00:08]} 20.
Rf1 {[%clk 00:25:20]} {[%emt 00:11:42]} O-O {[%clk 00:45:41]} {[%emt 00:02:16]}
21. Be3 {[%clk 00:16:12]} {[%emt 00:09:38]} Re8 {[%clk 00:45:23]} {[%emt
00:00:48]} 22. Qd2 {[%clk 00:13:21]} {[%emt 00:03:21]} Nd3 {[%clk 00:44:05]}
{[%emt 00:01:48]} 23. h4 {[%clk 00:12:39]} {[%emt 00:01:12]} b5 {[%clk
00:39:09]} {[%emt 00:05:27]} 24. g5 {[%clk 00:11:35]} {[%emt 00:01:33]} Nh5
{[%clk 00:35:11]} {[%emt 00:04:28]} 25. Ne4 {[%clk 00:11:24]} {[%emt 00:00:41]}
hxg5 {[%clk 00:26:06]} {[%emt 00:09:36]} 26. hxg5 {[%clk 00:11:49]} {[%emt
00:00:06]} Qd7 {[%clk 00:26:03]} {[%emt 00:00:33]} 27. Qe2 {[%clk 00:09:16]}
{[%emt 00:03:02]} g6 {[%clk 00:25:40]} {[%emt 00:00:53]} 28. Ng4 {[%clk
00:08:18]} {[%emt 00:01:28]} Kh8 {[%clk 00:17:00]} {[%emt 00:09:11]} 29. Bd4+
{[%clk 00:07:15]} {[%emt 00:01:33]} Ne5 {[%clk 00:17:22]} {[%emt 00:00:08]} 30.
Bh3 {[%clk 00:04:30]} {[%emt 00:03:15]} Qb7 {[%clk 00:14:32]} {[%emt 00:03:20]}
31. Nxe5 {[%clk 00:04:04]} {[%emt 00:00:56]} dxe5 {[%clk 00:15:00]} {[%emt
00:00:02]} 32. Bxe5+ {[%clk 00:04:25]} {[%emt 00:00:09]} Kg8 {[%clk 00:13:26]}
{[%emt 00:02:04]} 33. fxg6 {[%clk 00:01:30]} {[%emt 00:03:25]} Bxg6 {[%clk
00:13:27]} {[%emt 00:00:32]} 34. Bxc8 {[%clk 00:01:56]} Qxd5 {[%clk 00:11:16]}
{[%emt 00:02:41]} 35. Bf5 {[%clk 00:01:12]} {[%emt 00:01:14]} Bc5+ {[%clk
00:11:45]} {[%emt 00:00:01]} 36. Nxc5 {[%clk 00:01:08]} {[%emt 00:00:34]} Rxe5
{[%clk 00:12:14]} {[%emt 00:00:02]} 37. Bxg6 {[%clk 00:00:33]} {[%emt
00:01:04]} Rxg5+ {[%clk 00:12:27]} {[%emt 00:00:17]} 38. Kh2 {[%clk 00:00:33]}
{[%emt 00:00:30]} Qd6+ {[%clk 00:12:51]} {[%emt 00:00:06]} 39. Kh1 {[%clk
00:00:32]} {[%emt 00:00:31]} Ng3+ {[%clk 00:13:16]} {[%emt 00:00:04]} 0-1